Cogmind - Beta 13 @@@ ROGUE MODE // 2024.04.15 @ 19:44:16 Player: graour Result: Destroyed by Y-54 Guardian with Flak Gun Performance ------------- Evolutions (0) 0 Regions Visited (4) 800 Robots Destroyed (28) 140 Value Destroyed (633) 633 Prototype IDs (0) 0 Alien Tech Used (0) 0 Bonus (31) 31 TOTAL SCORE: 1604 Bonus ------- Follower Combat Kills 81 Friendly Fire -50 Cogmind --------- Core Integrity 0/250 Matter 275/300 Energy 100/100 System Corruption 0% Temperature Warm (121) Movement Treading (165) Location -7/Recycling Parts ------- > --- POWER (1) -------- (None) > --- PROPULSION (2) --- Armored Treads Medium Treads > --- UTILITY (2) ------ High-capacity Storage Unit Signal Interpreter > --- WEAPON (2) ------- Battle Cannon > --- INVENTORY (20) --- Subdweller Power Source Medium Treads Medium Treads Medium Treads Medium Treads Scrap Engine Improved Heat Sink Improved Heat Sink Large Battery (200) Light Armor Plating Small Laser Particle Gun Gauss Rifle Rocket Launcher Rocket Launcher Mining Claw Greatsword Peak State ------------ > --- POWER ------------ Light Nuclear Core > --- PROPULSION ------- Armored Treads Medium Treads > --- UTILITY ---------- High-capacity Storage Unit Signal Interpreter > --- WEAPON ----------- Small Laser Battle Cannon > --- INVENTORY -------- Subdweller Power Source Light Nuclear Core Medium Treads Medium Treads Medium Treads Medium Treads Scrap Engine Improved Heat Sink Improved Heat Sink Large Battery Light Armor Plating Small Laser Particle Gun Gauss Rifle Rocket Launcher Rocket Launcher Mining Claw Greatsword [Rating: 21] Favorites ----------- Power Light Ion Engine Engine Light Ion Engine Power Core Light Nuclear Core Propulsion Light Treads Treads Light Treads Wheel Subdweller Monowheel Utility High-capacity Storage Unit Device Terrain Scanner Storage High-capacity Storage Unit Processor Signal Interpreter Weapon Small Laser Energy Gun Small Laser Ballistic Gun Assault Rifle Ballistic Cannon Battle Cannon Slashing Weapon Mining Claw Build | -11 -10 -10 -10 -7 ------- Run | Yrd Mat Min Sub Rec Slots Evolved . | . . . . . Power . | . . . . . Propulsion . | . . . . . Utility . | . . . . . Weapon . | . . . . . Parts Attached 31 | 6 11 . 9 5 Power 5 | 1 1 . 2 1 Engine 2 | 1 1 . . . Core 3 | . . . 2 1 Reactor . | . . . . . Propulsion 11 | 2 3 . 3 3 Treads 5 | . 2 . . 3 Leg . | . . . . . Wheel 6 | 2 1 . 3 . Hover . | . . . . . Flight . | . . . . . Utility 5 | 1 4 . . . Device 1 | . 1 . . . Storage 3 | 1 2 . . . Processor 1 | . 1 . . . Hackware . | . . . . . Protection . | . . . . . Artifact . | . . . . . Weapon 10 | 2 3 . 4 1 Energy Gun 6 | 2 3 . 1 . Energy Cannon . | . . . . . Ballistic Gun 1 | . . . 1 . Ballistic Cannon 1 | . . . . 1 Launcher . | . . . . . Special Weapon . | . . . . . Impact Weapon . | . . . . . Slashing Weapon 2 | . . . 2 . Piercing Weapon . | . . . . . Special Melee Weapon . | . . . . . Unidentified Prototypes . | . . . . . Parts Lost 7 | . 4 . . 3 Power 3 | . 1 . . 2 Propulsion 2 | . 2 . . . Utility . | . . . . . Weapon 2 | . 1 . . 1 Highest Loss Streak 3 | . 2 . . 3 To Critical Strikes . | . . . . . Average Slot Usage (%) 99 | . 97 100 99 98 Engine 9 | . 13 14 7 . Core 4 | . . . 6 14 Treads 18 | . 4 28 10 23 Wheel 9 | . 22 . 16 3 Device 1 | . 7 . . . Storage 14 | . 14 14 14 14 Processor 12 | . 5 14 14 14 Energy Gun 23 | . 27 28 17 14 Slashing Weapon 4 | . . . 7 13 Naked Turns . | . . . . . Heaviest Build 49 | 13 49 46 48 49 Greatest Support 48 | 26 40 40 40 48 Greatest Overweight (x) 15 | . 4 1 15 15 Average Overweight (x) 1 | . 1 1 1 . Largest Inventory Capacity 20 | 8 20 20 20 20 Average Capacity 19 | 6 19 20 20 20 Most Carried 20 | 4 20 20 20 20 Average Carried 18 | 2 16 19 19 19 Final Capacity 20 | 8 20 20 20 20 Final Carried 20 | 4 18 20 20 19 Class Distribution -------------------- 100% | Mutant Dominant Class ---------------- Mutant | -10/Materials Mutant | -10/Mines Mutant | -10/Subcaves Mutant | -7/Recycling Resources | -11 -10 -10 -10 -7 ----------- Run | Yrd Mat Min Sub Rec Matter Collected 516 | 243 117 . 126 30 Remotely . | . . . . . Salvage Created 1345 | . 583 59 60 643 Parts 59 | . 37 2 1 19 Haulers Intercepted . | . . . . . Recyclers Shooed 1 | . 1 . . . Parts Field Recycled . | . . . . . Retrieved Matter . | . . . . . Parts Self-Destructed 9 | . . . 9 . Prevented . | . . . . . Kills | -11 -10 -10 -10 -7 ------- Run | Yrd Mat Min Sub Rec Combat Hostiles Destroyed 15 | . 12 . 1 2 Guns 13 | . 12 . 1 . Cannons 2 | . . . . 2 Classes Destroyed 9 | . 4 1 1 3 Builder 1 | . . . . 1 Tunneler 2 | . 1 1 . . Recycler 5 | . . 1 . 4 Turret 2 | . . . 2 . Watcher 3 | . 3 . . . Swarmer 4 | . 3 . 1 . Grunt 9 | . 9 . . . Duelist 1 | . . . . 1 Sentry 1 | . . . . 1 Best Kill Streak 3 | . 3 1 2 2 Combat Bots Only 3 | . 3 . 1 2 Max Kills in Single Turn 1 | . 1 1 1 1 Gunslinging . | . . . . . Exploded . | . . . . . Melee . | . . . . . Uniques/NPCs Destroyed . | . . . . . Combat | -11 -10 -10 -10 -7 -------- Run | Yrd Mat Min Sub Rec Hostile Shots Fired 201 | . 53 . 82 66 Missed 63 | . 14 . 29 20 Damage Taken 1161 | . 446 . 318 397 Core 250 | . 89 . 93 68 Absorbed by Shields . | . . . . . Core Remaining (%) 100 | 100 . . . . Volleys Fired 65 | . 49 . 12 4 Largest 2 | . 2 . 2 2 Hottest 80 | . 80 . 60 79 Shots Fired 130 | . 98 . 24 8 Gun 126 | . 98 . 24 4 Cannon 4 | . . . . 4 Launcher . | . . . . . Special . | . . . . . Kinetic 16 | . . . 12 4 Thermal 69 | . 53 . 12 4 Explosive . | . . . . . Electromagnetic 45 | . 45 . . . Robot Hit Streak 11 | . 11 . 5 5 Robot Miss Streak 3 | . 3 . 2 1 Penetration Max . | . . . . . Secondary Targets 1 | . 1 . . . Max Gunslinging Chain 1 | . 1 . . . Shots Hit Robots 99 | . 63 . 16 20 Core Hits 45 | . 26 1 7 11 Critical Kills . | . . . . . Critical Parts Destroyed . | . . . . . Critical Strikes 1 | . 1 . . . Corrupt 1 | . 1 . . . Melee Attacks 51 | . . . 33 18 Impact . | . . . . . Slashing 51 | . . . 33 18 Piercing . | . . . . . Sneak Attacks 9 | . . . 1 8 Combat Hostiles 1 | . . . . 1 Follow-up Attacks . | . . . . . Damage Inflicted 1842 | . 812 52 224 754 Guns 1030 | . 812 . 174 44 Cannons 92 | . . . . 92 Explosions . | . . . . . Melee 668 | . . . 50 618 Ramming 52 | . . 52 . . Kinetic 191 | . . . 99 92 Thermal 490 | . 371 . 75 44 Explosive . | . . . . . Electromagnetic 441 | . 441 . . . Impact . | . . . . . Slashing 668 | . . . 50 618 Piercing . | . . . . . Highest Corruption . | . . . . . Average Corruption . | . . . . . Corruption Purged . | . . . . . Corruption Blocked . | . . . . . Overload Shots . | . . . . . Overflow Damage 73 | . . . . 73 Projectiles . | . . . . . Explosions . | . . . . . Melee 73 | . . . . 73 Knockbacks 4 | . . 2 . 2 Impact 2 | . . 2 . . Kinetic 1 | . . . . 1 Secondary 1 | . . . . 1 Self-Inflicted Damage . | . . . . . Shots . | . . . . . Rammed 6 | . . 6 . . Targets Rammed 8 | . . 8 . . Kicked . | . . . . . Crushed 2 | . . 2 . . Highest Temperature 300 | . 300 . . 103 Average Temperature 81 | . 83 . . 48 Received Heat Transfer 540 | . 258 . 210 72 Siege Activations . | . . . . . Robots Corrupted . | . . . . . Combat Hostiles . | . . . . . Parts Fried 2 | . 2 . . . Impact Corruptions . | . . . . . Robots Melted . | . . . . . Combat Hostiles . | . . . . . Parts Melted 2 | . 2 . . . Heat Transferred 1125 | . 850 . 175 100 Parts Sabotaged . | . . . . . Parts Stolen . | . . . . . Parts Stripped . | . . . . . Power Chain Reactions . | . . . . . Alert | -11 -10 -10 -10 -7 ------- Run | Yrd Mat Min Sub Rec Peak Influence 320 | . 225 72 . 320 Initial 278 | . . 9 . 278 Average 75 | . 102 4 . 200 Maximum Alert Level 1 | . 1 . . 1 Low Security (%) 88 | 100 97 100 . 52 Level 1 11 | . 2 . . 47 Level 2 . | . . . . . Level 3 . | . . . . . Level 4 . | . . . . . Level 5 . | . . . . . High Security . | . . . . . Max Security . | . . . . . Squads Dispatched 3 | . 3 . . . Investigation 2 | . 2 . . . Extermination . | . . . . . Reinforcement 1 | . 1 . . . Assault . | . . . . . Garrison . | . . . . . Intercept . | . . . . . Searches Triggered . | . . . . . Construction Impeded . | . . . . . Haulers Reinforced . | . . . . . Active Scanning Responses . | . . . . . Cargo Convoy Interrupts . | . . . . . Stealth | -11 -10 -10 -10 -7 --------- Run | Yrd Mat Min Sub Rec Distress Signals . | . . . . . Communications Jammed . | . . . . . Distress Signals . | . . . . . Times Spotted 71 | . 23 3 41 4 Peak Tracking Total 5 | . 4 3 5 4 Tactical Retreats 4 | . . . 4 . Traps | -11 -10 -10 -10 -7 ------- Run | Yrd Mat Min Sub Rec Traps Triggered 2 | . 1 . 1 . Indirectly . | . . . . . Trap Hack Attempts . | . . . . . Triggered . | . . . . . Disarmed . | . . . . . Reprogrammed . | . . . . . Reused . | . . . . . Traps Extracted . | . . . . . Installed . | . . . . . Triggered . | . . . . . Most Traps Carried 2 | . . 2 2 2 Objects Rigged 3 | . 3 . . . Machines | -11 -10 -10 -10 -7 ---------- Run | Yrd Mat Min Sub Rec Machines Disabled 1 | . . . 1 . Max in Single Turn 1 | . . . 1 . Machines Repaired . | . . . . . Machines Dismantled . | . . . . . Machines Sabotaged . | . . . . . Overloaded Fab Kills . | . . . . . Hacking | -11 -10 -10 -10 -7 --------- Run | Yrd Mat Min Sub Rec Machines Accessed 9 | . 4 . . 5 Terminals 6 | . 4 . . 2 Fabricators . | . . . . . Repair Stations . | . . . . . Recycling Units 3 | . . . . 3 Scanalyzers . | . . . . . Garrison Access . | . . . . . Total Hacks 22 | . 11 . . 11 Successful 9 | . 4 . . 5 Failed 13 | . 7 . . 6 Catastrophic 1 | . . . . 1 Database Lockouts . | . . . . . Manual 8 | . 5 . . 3 Terminals 14 | . 11 . . 3 Fabricators . | . . . . . Repair Stations . | . . . . . Recycling Units 8 | . . . . 8 Scanalyzers . | . . . . . Garrison Access . | . . . . . Terminal Hacks 4 | . 3 . . 1 Recall Investigation 1 | . 1 . . . Hauler Manifests 1 | . 1 . . . Zone Layout 2 | . 1 . . 1 Fabricator Hacks . | . . . . . Repair Station Hacks . | . . . . . Recycling Unit Hacks 4 | . . . . 4 Report Inventory 1 | . . . . 1 Retrieve Components 3 | . . . . 3 Scanalyzer . | . . . . . Garrison Access Hacks . | . . . . . Unauthorized Hacks 1 | . 1 . . . Terminals 1 | . 1 . . . Detonate 1 | . 1 . . . Fabricators . | . . . . . Repair Stations . | . . . . . Recycling Units . | . . . . . Scanalyzers . | . . . . . Garrison Access . | . . . . . Data Cores Recovered . | . . . . . Used . | . . . . . Hacking Detections 8 | . 4 . . 4 Full Trace Events 1 | . 1 . . . Feedback Events . | . . . . . Feedback Blocked . | . . . . . Robot Schematics Acquired . | . . . . . Robots Built . | . . . . . Authchips . | . . . . . Time . | . . . . . Total Robot Build Rating . | . . . . . Part Schematics Acquired . | . . . . . Parts Built . | . . . . . Authchips . | . . . . . Time . | . . . . . Total Part Build Rating . | . . . . . Parts Repaired . | . . . . . Time . | . . . . . Parts Recycled . | . . . . . Recycled Matter . | . . . . . Retrieved Matter . | . . . . . Retrieved Components 10 | . . . . 10 Parts Scanalyzed . | . . . . . Part Schematics Acquired . | . . . . . Parts Damaged . | . . . . . Bothacking | -11 -10 -10 -10 -7 ------------ Run | Yrd Mat Min Sub Rec Used RIF Installer . | . . . . . Robots Hacked . | . . . . . Non-combat . | . . . . . Combat . | . . . . . Robot Hacks Applied . | . . . . . Relay Couplers Released . | . . . . . Fabnet Peak Effective % . | . . . . . Robots Rewired . | . . . . . Allies Hacked . | . . . . . Hacks Repelled . | . . . . . Allies | -11 -10 -10 -10 -7 -------- Run | Yrd Mat Min Sub Rec Total Allies 4 | . . 4 . . Largest Group 4 | . . 4 3 . Highest-Rated Group 71 | . . 71 40 . Highest-Rated Ally 31 | . . 31 16 . Total Orders . | . . . . . Ally Attacks 28 | . . 6 22 . Total Damage 351 | . . 48 303 . Kills 5 | . . 2 3 . Allies Corrupted . | . . . . . Allies Melted . | . . . . . Intel | -11 -10 -10 -10 -7 ------- Run | Yrd Mat Min Sub Rec Robot Analysis Total . | . . . . . Derelict Logs Recovered 2 | . . 1 1 . Drone Launches . | . . . . . Drone Recoveries . | . . . . . Exploration | -11 -10 -10 -10 -7 ------------- Run | Yrd Mat Min Sub Rec Turns Passed 4662 | 50 964 1783 1028 837 Spaces Moved 2324 | 47 593 665 565 454 Core 17 | 12 . . 2 3 Treads 1255 | . 63 665 146 381 Legs . | . . . . . Wheels 1052 | 35 530 . 417 70 Hover . | . . . . . Flight . | . . . . . Fastest Speed 50 | 50 90 240 117 120 Average Speed 171 | 79 123 240 153 164 Slowest Speed 800 | 90 240 240 800 800 Overloaded Moves . | . . . . . Propulsion Burnouts . | . . . . . Robots Hopped . | . . . . . Cave-ins Triggered . | . . . . . Exploration Rate (%) 59 | 4 81 99 33 79 Regions Visited 4 Branch Regions 3 Pre-discovered Areas . | . . . . . Known Exits Taken 3 | . 1 1 1 . Unknown Exits Taken 1 | 1 . . . . Scrap Searched 1 | . . 1 . . Spaces Dug 2 | . . . . 2 Terrain Destroyed 2 | . . . . 2 Melee 2 | . . . . 2 Projectile . | . . . . . AOE . | . . . . . Terrain Rammed . | . . . . . Walls Destroyed . | . . . . . Machines Disabled . | . . . . . Actions | -11 -10 -10 -10 -7 --------- Run | Yrd Mat Min Sub Rec Total 2784 | 56 732 843 641 512 Wait 212 | . 44 163 5 . Move 2320 | 46 592 664 564 454 Hop . | . . . . . Pick Up 51 | 4 23 5 7 12 Fast Attach 12 | 6 4 . . 2 Attach 6 | . 3 . 2 1 Detach 2 | . 2 . . . Swap 13 | . 4 . 7 2 Drop 42 | . 11 3 11 17 Fire 65 | . 49 . 12 4 Melee 51 | . . . 33 18 Ram . | . . . . . Kick . | . . . . . Crush 8 | . . 8 . . Escape Stasis . | . . . . . Rewire 2 | . . . . 2 Trap . | . . . . . Miscellaneous . | . . . . . Route ------- -11/Scrapyard -10/Materials (discovered 4 exits: *Mat x2 / *Min / Sub) -10/Mines (discovered 3 exits: *Mat x2 / *Sub) -10/Subcaves -7/Recycling History --------- Turn | Location | Event 2 | -11/Scrapyard | Met Revision 17 11 | -11/Scrapyard | Discovered new exit (range 15) 51 | -11/Scrapyard | Entered Materials 84 | -10/Materials | Discovered new exit (range 14) 171 | -10/Materials | Discovered new exit (range 14) 311 | -10/Materials | Build established: Mutant 661 | -10/Materials | Identified exit to Materials 722 | -10/Materials | Discovered exit to Materials (range 16) 789 | -10/Materials | Discovered new exit (range 16) 804 | -10/Materials | Identified exit to Mines 1015 | -10/Materials | Entered Mines 1030 | -10/Mines | Met a Derelict bent on vengeance 1136 | -10/Mines | Received a Mining Laser from a helpful Derelict 1208 | -10/Mines | Learned 2 Materials zone layouts 1267 | -10/Mines | Assisted by bots powering up and referring to "LRC-V3" 1689 | -10/Mines | Discovered new exit (range 5) 1728 | -10/Mines | Identified exit to Subcaves 1977 | -10/Mines | Found a hidden stash of uninstalled traps 2392 | -10/Mines | Discovered exit to Materials (range 5) 2503 | -10/Mines | Discovered exit to Materials (range 10) 2798 | -10/Mines | Entered Subcaves 2798 | -10/Subcaves | Accompanied by 3 allies 2880 | -10/Subcaves | Learned Materials emergency access door positions 2982 | -10/Subcaves | Shifting Twisted Machinery released Sub. Power Source 3182 | -10/Subcaves | Shifting Twisted Machinery released Sub. Monowheel 3294 | -10/Subcaves | Discovered new exit (range 13) 3358 | -10/Subcaves | Core integrity fell below 50% 3403 | -10/Subcaves | Identified exit to Recycling 3557 | -10/Subcaves | Shifting Twisted Machinery released Battle Cannon 3630 | -10/Subcaves | Shifting Twisted Machinery released Sub. Power Source 3826 | -10/Subcaves | Entered Recycling 3835 | -7/Recycling | Found Scrap Engine 4658 | -7/Recycling | Core integrity fell below 20% 4663 | -7/Recycling | Destroyed by Y-54 Guardian with Flak Gun Last Messages --------------- 04236_ Dropped Wheel. 04236_ Acquired Lgt. Treads. 04243_ R-06 Scavenger collects Wheel. 04290_ Acquired 10 matter. 04392_ Dropped Lgt. Treads. 04394_ Acquired Med. Treads. 04401_ R-06 Scavenger collects Lgt. Treads. 04402_ Dropped Com. Wheel. 04404_ Acquired Med. Treads. 04416_ Connecting with Terminal... 04642_ Sneak attack on H-55 Commando. 04647_ Attempting to rewire H-55 Commando. 04648_ Y-54 Guardian springs to life. 04648_ L-41 Fighter springs to life. 04653_ Lgt. Nuclear Core destroyed. 04655_ L-41 Fighter knocked back. 04658_ Y-54 Guardian destroyed. 04661_ L-41 Fighter destroyed. 04661_ Lgt. Nuclear Core destroyed. 04663_ Sml. Laser destroyed. Map ----- +----------------------------------------------------+ | ????????????????????????? | | ????????????????????????? | | ??????????????????????????##### #####%% # | | ?????????????????????????????"" ?????#% %# | | ?????????????????????????????"Y ??????##### | | ?????????????????????????????"????????##### | | ??????????????????????????????????????# | | ??????????????????????????????????????# | | ??????????????????????????????????????# | | ??????????????????????????????????????# | | ???????????????????+??????????????????# | | ??????????????????# ??????????????????# | | ??????????????????# ###???????????????# | | ??????????????????# ###########?????# | | ?????????????###### # #?????# | | ????????????? # #?????# | | ????????????? r # """ """ #?????# | | ?????????????""" # """ """ #?????# | | ????????????"""" # """ """ ########### | | ????????????"""" # """ """ + | | ?????????? """"" # """ """ ###### | | ????????# """"" # #????# " | | ????????# """"" #####+##+####### "" | | ????????# """"" | | ????????+ Y = r r | | ????????# % Y %!@ | | ????????# #####+#########+##+######## # | | ???????????????*[% ?????# #??# # | | ??????????????#! ???# #??# # | | ??????????????# %#?# #??# # | | ??????????????# % #?# #??# # | | ??????????????#! #?# #??# # | | ??????????????# !! #?# #??# # | | ??????????????# #?# #??# | | ??????????????# = #? #??# | | ??????????????# #############??# | | ??????????????##########?????###########+## | | ?????????????????????????????# | | ??????????????????????????#### """ """ | | ??????????????????????????#""" """"" """" | | ??????????????????????????#"T """"" """" | | ??????????????????????????#""" """"" """" | | ??????????????????????????#### """ """ | | ?????????????????????????????# | | ?????????????????????????????############## | | ??????????????????????????????????????????? | | ??????????????????????????????????????????? | | | | | | | +----------------------------------------------------+ Best States ------------- Heat Dissipation 25 Energy Generation 14 Energy Capacity 250 Matter Stores 300 Matter Capacity 300 Sight Range 16 Terrain Scan Range 14 Terrain Scan Density 10 Evasion (%) 50 Recoil Reduction 2 Item Schematics ----------------- None Robot Schematics ------------------ None Fabricated ------------ Nothing Alien Tech Used ----------------- None Achievements -------------- None Challenges ------------ None Game ------ Seed DisruptionFusionImmobilizer Manual? 0 Play Time 00:28:53 Cumulative 31.0 hours Start 2024.04.15 @ 19:15:30 End 2024.04.15 @ 19:44:16 Sessions 1 Manual Loads 0 Difficulty Rogue Special Mode None Game No. 52 Rogue 52 Adventurer 0 Explorer 0 Win Type - Total 0 Types 0/0/0/0/0/0/0/0/0 Lore% 33 Gallery% 38 Achievement% 26 Wizard Run 0 Options --------- Layout 1 ASCII 0 Keyboard 1 Movement Arrows Keybinds 0 Fullscreen 1 Font 24/Smallcaps Map View 50x35 Zoom Use 0% Tactical HUD 1 Map Filters NONE Filters NONE Steam 1 RUN: 53b093f3-9778-462b-a62c-d87f074f6236